fUST/lending_fUST_20240128
["ID","MTS","AMOUNT","RATE_DAILY","PERIOD"]
[312874980,1706388633691,-263.50469013,0.00016146,2]
[312874982,1706388633700,-1247.84704483,0.00016253,2]
[312874984,1706388633710,-1652.67407024,0.00016254,2]
[312874986,1706388633719,-2105.3133158,0.00016255,2]
[312874988,1706388633730,-309.73348156,0.00016256,2]
[312874990,1706388633739,-194.68732422,0.00016256,2]
[312874992,1706388633749,-155.20715797,0.00016256,2]
[312874994,1706388633758,-15728.96565272,0.00016257,2]
[312875243,1706388638543,-1604.88299815,0.00016257,2]
[312875244,1706388638555,-1035.52157885,0.00016257,2]
[312875245,1706388638652,-42626.25227153,0.00016257,2]
[312875246,1706388638662,-272.79145972,0.000165,2]
[312875248,1706388638671,-903.29302173,0.00017078,2]
[312875249,1706388638680,-996.06517026,0.00017276,2]
[312875250,1706388638690,-294.81882163,0.00017276,2]
[312875251,1706388638700,-283.65055231,0.00017276,2]
[312875252,1706388638709,-5212.65916057,0.00017288,2]
[312875253,1706388638719,-200.0,0.00017738,2]
[312875254,1706388638728,-178.82165208,0.0001826,2]
[312875255,1706388638737,-29428.34065491,0.00018383,2]
[312875256,1706388638746,-155.75566433,0.00018848,2]
[312875257,1706388638756,-16918.49587485,0.000189,2]
[312875258,1706388638765,-1583.7528565,0.00019,2]
[312875259,1706388638777,-169.685867,0.00019178,2]
[312875260,1706388638786,-168.056981,0.00019178,2]
[312875261,1706388638794,-167.0686483,0.00019178,2]
[312875262,1706388638803,-167.068647,0.00019178,2]
[312875263,1706388638813,-280.0,0.00019511,2]
[312875264,1706388638822,-1199.09633829,0.0002,2]
[312875265,1706388638831,-155.01860223,0.0002,2]
[312875266,1706388638841,-155.01860223,0.0002,2]
[312875267,1706388638851,-679.3029243,0.0002,2]
[312875268,1706388638861,-155.02015262,0.0002,2]
[312875269,1706388638870,-200.0,0.0002,2]
[312875270,1706388638879,-155.01860223,0.0002,2]
[312875271,1706388638889,-156.28562946,0.0002,2]
[312875272,1706388638898,-259.07239837,0.0002,2]
[312875273,1706388638907,-2009.31889645,0.0002,2]
[312875274,1706388638916,-244.16390159,0.0002,2]
[312875275,1706388638925,-168.99927393,0.0002,2]
[312875276,1706388638934,-151.53182002,0.0002,2]
[312875277,1706388638943,-1244.01238669,0.00020987,2]
[312875278,1706388638953,-523.34168566,0.00020988,2]
[312875279,1706388638962,-310.03565411,0.00020988,2]
[312875280,1706388638971,-155.37359722,0.00020988,2]
[312875281,1706388638980,-1576.73391587,0.00020988,2]
[312875282,1706388638990,-246.00494738,0.00020988,2]
[312875283,1706388638999,-155.40417859,0.00020988,2]
[312875284,1706388639008,-19686.94192996,0.00020988,2]
[312875285,1706388639018,-265.43031538,0.00020998,2]
[312875286,1706388639027,-155.32332219,0.00020998,2]
[312875287,1706388639036,-1108.86169578,0.00020998,2]
[312875288,1706388639045,-247.50946715,0.00020998,2]
[312875289,1706388639055,-229.68690081,0.00020999,2]
[312875290,1706388639064,-233.19482387,0.00021,2]
[312875291,1706388639073,-30977.36086633,0.00021,2]
[312875292,1706388639082,-194.51343232,0.00021,2]
[312875293,1706388639092,-9869.12528061,0.00021,2]
[312875294,1706388639102,-1826.97153487,0.00021,2]
[312875295,1706388639111,-166.92294,0.00021,2]
[312875296,1706388639120,-166.92294,0.00021,2]
[312875297,1706388639129,-151.0,0.00021,2]
[312875298,1706388639139,-151.0,0.00021,2]
[312875299,1706388639148,-151.0,0.00021,2]
[312875300,1706388639157,-7449.883539,0.00021,2]
[312875301,1706388639166,-7449.883539,0.00021,2]
[312875302,1706388639175,-155.75566433,0.00021665,2]
[312875303,1706388639185,-500.0,0.00021917,2]
[312875304,1706388639195,-500.0,0.00021917,2]
[312875305,1706388639204,-500.0,0.00021917,2]
[312875306,1706388639213,-500.0,0.00021917,2]
[312875307,1706388639222,-500.0,0.00021917,2]
[312875308,1706388639231,-500.0,0.00021917,2]
[312875309,1706388639321,-619.87643609,0.00021917,2]
[312875310,1706388639331,-166.666666,0.00021918,2]
[312875311,1706388639341,-293.70793193,0.00022,4]
[312875312,1706388639350,-2036.12411825,0.00022,2]
[312875313,1706388639360,-327.61566675,0.00022,2]
[312875314,1706388639369,-3971.98419525,0.00022,2]
[312875315,1706388639378,-426.38170713,0.00022,2]
[312875316,1706388639388,-164.09330822,0.00022,2]
[312875317,1706388639398,-166.666666,0.00022431,2]
[312875318,1706388639407,-166.666666,0.00022944,2]
[312875319,1706388639417,-9947.92180076,0.00023,2]
[312875320,1706388639426,-1416.67721386,0.00023,2]
[312875321,1706388639436,-151.0,0.00023,2]
[312875322,1706388639445,-151.0,0.00023,2]
[312875323,1706388639454,-151.754742,0.00023,2]
[312875324,1706388639463,-534.186797,0.00023,2]
[312875325,1706388639473,-534.186797,0.00023,2]
[312875326,1706388639482,-3711.65009,0.00023,2]
[312875327,1706388639492,-3711.65009,0.00023,2]
[312875328,1706388639501,-7449.883539,0.00023,2]
[312875329,1706388639511,-7449.883539,0.00023,2]
[312875330,1706388639521,-166.666666,0.00023456,2]
[312875331,1706388639531,-16918.49587485,0.000239,2]
[312875332,1706388639540,-151.0,0.000239,2]
[312875333,1706388639550,-151.0,0.000239,2]
[312875334,1706388639560,-154.69686,0.000239,2]
[312875335,1706388639569,-151.0,0.000239,2]
[312875336,1706388639578,-166.666666,0.00023969,2]
[312875337,1706388639587,-4017.99473219,0.00024,2]
[312875338,1706388639597,-155.75566433,0.00024481,2]
[312875339,1706388639606,-166.666666,0.00024482,2]
[312875341,1706388639616,-380.0,0.00024658,2]
[312875342,1706388639626,-498.88477678,0.0002496,5]
[312875343,1706388639636,-1500.90139842,0.00025,2]
[312875344,1706388639646,-4727.98807036,0.00025,2]
[312875345,1706388639655,-7649.9786433,0.00025,2]
[312875346,1706388639664,-851.06760342,0.00025,2]
[312875347,1706388639674,-1206.92115646,0.00025,2]
[312875348,1706388639683,-1003.22663842,0.00025,2]
[312875349,1706388639693,-680.67452781,0.00025,2]
[312875350,1706388639703,-155.01860223,0.00025,2]
[312875351,1706388639713,-309.9690031,0.00025,2]
[312875352,1706388639724,-260.27250039,0.00025,2]
[312875353,1706388639734,-1828.18039739,0.00025,2]
[312875354,1706388639743,-166.92294,0.00025,2]
[312875355,1706388639754,-166.92294,0.00025,2]
[312875356,1706388639763,-534.186797,0.00025,2]
[312875357,1706388639774,-534.186797,0.00025,2]
[312875358,1706388639785,-3711.65009,0.00025,2]
[312875359,1706388639794,-3711.65009,0.00025,2]
[312875360,1706388639803,-7449.883539,0.00025,2]
[312875361,1706388639813,-7449.883539,0.00025,2]
[312875362,1706388639825,-2908.5811352,0.00025297,2]
[312875363,1706388639834,-151.0,0.00025297,2]
[312875364,1706388639845,-212.272603,0.00025297,2]
[312875365,1706388639855,-212.272603,0.00025297,2]
[312875366,1706388639867,-151.0,0.00025297,2]
[312875367,1706388639877,-194.9590979,0.00025479,2]
[312875368,1706388639887,-874.93704612,0.00025916,2]
[312875369,1706388639897,-241.485214,0.00026,2]
[312875370,1706388639906,-685.41453735,0.00026908,2]
[312875371,1706388639918,-290.6944281,0.00027,2]
[312875372,1706388639928,-632.74685231,0.00027212,2]
[312875373,1706388639937,-153.0,0.0002726,2]
[312875374,1706388639947,-155.75566433,0.00027297,2]
[312875375,1706388639957,-151.0,0.00027397,2]
[312875376,1706388639967,-151.0,0.00027397,2]
[312875377,1706388639977,-212.272603,0.00027397,2]
[312875378,1706388639986,-212.272603,0.00027397,2]
[312875379,1706388639995,-212.272603,0.00027397,2]
[312875380,1706388640004,-212.272603,0.00027397,2]
[312875381,1706388640013,-151.0,0.00027397,2]
[312875382,1706388640022,-151.0,0.00027397,2]
[312875383,1706388640032,-151.0,0.00027397,2]
[312875384,1706388640041,-151.0,0.00027397,2]
[312875385,1706388640050,-151.0,0.00027397,2]
[312875386,1706388640059,-151.0,0.00027397,2]
[312875387,1706388640070,-166.92294,0.00027397,2]
[312875388,1706388640079,-166.92294,0.00027397,2]
[312875389,1706388640088,-166.92294,0.00027397,2]
[312875390,1706388640098,-166.92294,0.00027397,2]
[312875391,1706388640107,-151.0,0.00027397,2]
[312875392,1706388640118,-151.0,0.00027397,2]
[312875393,1706388640127,-151.0,0.00027397,2]
[312875394,1706388640140,-534.186797,0.00027397,2]
[312875395,1706388640149,-534.186797,0.00027397,2]
[312875396,1706388640158,-534.186797,0.00027397,2]
[312875397,1706388640168,-534.186797,0.00027397,2]
[312875398,1706388640177,-3711.65009,0.00027397,2]
[312875399,1706388640186,-3711.65009,0.00027397,2]
[312875400,1706388640195,-3711.65009,0.00027397,2]
[312875401,1706388640204,-3711.65009,0.00027397,2]
[312875403,1706388640213,-151.0,0.00027397,2]
[312875404,1706388640222,-7449.883539,0.00027397,2]
[312875405,1706388640231,-7449.883539,0.00027397,2]
[312875406,1706388640240,-155.0,0.00027397,2]
[312875407,1706388640251,-616.687473,0.00027397,2]
[312875408,1706388640261,-31164.41,0.00027397,3]
[312875410,1706388640270,-1901.44944296,0.000275,2]
[312875412,1706388640279,-7449.883539,0.00027671,2]
[312875414,1706388640288,-7449.883539,0.00027671,2]
[312875416,1706388640298,-153.0,0.00027671,2]
[312875418,1706388640307,-153.0,0.00027671,2]
[312875420,1706388640317,-153.0,0.00027671,2]
[312875421,1706388640326,-199.4415769,0.00027671,2]
[312875424,1706388640336,-153.0,0.00027671,2]
[312875426,1706388640345,-153.2749493,0.00027671,2]
[312875428,1706388640354,-153.2223878,0.00027671,2]
[312875430,1706388640364,-308.9195671,0.00027671,2]
[312875432,1706388640373,-153.0,0.00027671,2]
[312875434,1706388640382,-153.0,0.00027671,2]
[312875436,1706388640391,-200.1857445,0.00027671,2]
[312875438,1706388640400,-153.0,0.00027671,2]
[312875440,1706388640410,-153.0,0.00027671,2]
[312875442,1706388640419,-153.0,0.00027671,2]
[312875445,1706388640428,-153.0,0.00027671,2]
[312875447,1706388640437,-153.0,0.00027671,2]
[312875449,1706388640447,-153.0,0.00027671,2]
[312875451,1706388640457,-153.0,0.00027671,2]
[312875453,1706388640466,-199.4415769,0.00027671,2]
[312875455,1706388640475,-153.0,0.00027671,2]
[312875457,1706388640485,-199.4415769,0.00027671,2]
[312875458,1706388640494,-153.0,0.00027671,2]
[312875459,1706388640503,-153.0,0.00027671,2]
[312875460,1706388640513,-153.0,0.00027671,2]
[312875462,1706388640522,-199.4415769,0.00027671,2]
[312875464,1706388640531,-153.0,0.00027671,2]
[312875466,1706388640540,-199.4415769,0.00027671,2]
[312875468,1706388640549,-153.0,0.00027671,2]
[312875470,1706388640558,-199.4415769,0.00027671,2]
[312875472,1706388640567,-153.0,0.00027671,2]
[312875474,1706388640576,-199.4415769,0.00027671,2]
[312875476,1706388640586,-199.4415769,0.00027671,2]
[312875477,1706388640595,-153.0,0.00027671,2]
[312875478,1706388640605,-199.397808,0.00027671,2]
[312875479,1706388640615,-500.0,0.00027853,2]
[312875480,1706388640624,-500.0,0.00027853,2]
[312875481,1706388640634,-500.0,0.00027853,2]
[312875482,1706388640643,-500.0,0.00027853,2]
[312875483,1706388640652,-500.0,0.00027853,2]
[312875484,1706388640661,-500.0,0.00027853,2]
[312875485,1706388640670,-500.0,0.00027853,2]
[312875486,1706388640679,-200.0,0.00027853,2]
[312875487,1706388640688,-500.0,0.00027853,2]
[312875488,1706388640696,-500.0,0.00027853,2]
[312875489,1706388640705,-500.0,0.00027853,2]
[312875490,1706388640715,-500.0,0.00027853,2]
[312875491,1706388640725,-500.0,0.00027853,2]
[312875492,1706388640734,-500.0,0.00027853,2]
[312875493,1706388640743,-500.0,0.00027853,2]
[312875494,1706388640752,-500.0,0.00027853,2]
[312875495,1706388640762,-405.99036075,0.00027853,2]
[312875496,1706388640772,-500.0,0.00027853,2]
[312875497,1706388640781,-500.0,0.00027853,2]
[312875498,1706388640794,-500.0,0.00027853,2]
[312875499,1706388640869,-500.0,0.00027853,2]
[312875500,1706388640878,-443.57107396,0.00027853,2]
[312875501,1706388640887,-526.82086975,0.00027853,2]
[312875502,1706388640896,-500.0,0.00027853,2]
[312875503,1706388640905,-250.0,0.00027853,2]
[312875504,1706388640914,-500.0,0.00027853,2]
[312875505,1706388640923,-500.0,0.00027853,2]
[312875506,1706388640932,-500.0,0.00027853,2]
[312875507,1706388640941,-151.0,0.00027854,2]
[312875508,1706388640950,-7449.883539,0.00027854,2]
[312875509,1706388640961,-7449.883539,0.00027854,2]
[312875510,1706388640970,-7696.33923264,0.00027855,2]
[312875511,1706388640979,-151.0,0.00027855,2]
[312875512,1706388640988,-401.86775842,0.000279,2]
[312875513,1706388640997,-200.96358611,0.00028,2]
[312875514,1706388641006,-239.76670397,0.00028,2]
[312875515,1706388641015,-600.0,0.00028,2]
[312875516,1706388641024,-151.0,0.00028133,2]
[312875517,1706388641033,-159.42971699,0.0002828,2]
[312875518,1706388641042,-153.0,0.00028493,2]
[312875519,1706388641051,-153.0,0.00028493,2]
[312875520,1706388641059,-153.0,0.00028493,2]
[312875521,1706388641069,-620.63734262,0.00028572,2]
[312875522,1706388641078,-155.0,0.00028767,2]
[312875523,1706388641087,-151.0,0.00028871,2]
[312875524,1706388641096,-534.186797,0.000289,2]
[312875525,1706388641105,-534.186797,0.000289,2]
[312875526,1706388641115,-3711.65009,0.000289,2]
[312875527,1706388641123,-3711.65009,0.000289,2]
[312875528,1706388641132,-16918.49587485,0.000289,2]
[312875529,1706388641141,-166.92294,0.00028919,2]
[312875530,1706388641150,-166.92294,0.00028919,2]
[312875531,1706388641159,-7449.883539,0.00028919,2]
[312875532,1706388641168,-7449.883539,0.00028919,2]
[312875533,1706388641177,-616.687473,0.00028919,2]
[312875534,1706388641186,-534.186797,0.00028998,2]
[312875535,1706388641196,-534.186797,0.00028998,2]
[312875536,1706388641204,-3711.65009,0.00028998,2]
[312875537,1706388641214,-3711.65009,0.00028998,2]
[312875538,1706388641223,-151.0,0.00028998,2]
[312875539,1706388641235,-152.299742,0.00028999,2]
[312875540,1706388641244,-1933.42796518,0.00029,2]
[312875541,1706388641254,-458.3251857,0.00029,2]
[312875542,1706388641263,-175.48032034,0.00029,2]
[312875543,1706388641272,-309.87175152,0.00029,2]
[312875544,1706388641281,-310.03720446,0.00029,2]
[312875545,1706388641291,-1000.0,0.00029,2]
[312875546,1706388641301,-9132.4701419,0.00029,4]
[312875547,1706388641310,-150.321,0.00029183,2]
[312875548,1706388641320,-151.0,0.00029608,2]
[312875549,1706388641329,-167.80993341,0.00029998,2]
[312875550,1706388641339,-151.0,0.00029998,2]
[312875551,1706388641350,-166.92294,0.00029998,2]
[312875552,1706388641360,-166.92294,0.00029998,2]
[312875553,1706388641370,-155.14803687,0.00029999,2]
[312875554,1706388641379,-212.272603,0.00029999,2]
[312875555,1706388641388,-212.272603,0.00029999,2]
[312875556,1706388641397,-151.0,0.00029999,2]
[312875557,1706388641406,-151.0,0.00029999,2]
[312875558,1706388641415,-4772.09048546,0.0003,2]
[312875559,1706388641424,-244.44828906,0.0003,4]
[312875560,1706388641433,-155.01860223,0.0003,4]
[312875561,1706388641443,-2850.44166112,0.0003,2]
[312875562,1706388641451,-632.137403,0.0003,2]
[312875563,1706388641460,-689.09430435,0.0003,4]
[312875564,1706388641470,-4577.70352548,0.0003,3]
[312875565,1706388641481,-2322.63899866,0.0003,4]
[312875566,1706388641490,-309.87922767,0.0003,2]
[312875567,1706388641499,-195.57103754,0.0003,2]
[312875568,1706388641508,-2079.53980355,0.0003,2]
[312875569,1706388641517,-146331.23431988,0.0003,4]
[312875570,1706388641526,-300.0,0.0003,4]
[312875571,1706388641535,-155.01860223,0.0003,4]
[312875572,1706388641544,-2803.02756458,0.0003,4]
[312875573,1706388641553,-408.1017874,0.0003,4]
[312875574,1706388641562,-4292.55674097,0.0003,4]
[312875575,1706388641571,-1027.50463707,0.0003,2]
[312875576,1706388641580,-151.0,0.0003,2]
[312875577,1706388641589,-151.0,0.0003,2]
[312875578,1706388641598,-151.0,0.0003,2]
[312875579,1706388641608,-151.0,0.0003,2]
[312875580,1706388641617,-245.0,0.0003,2]
[312875581,1706388641626,-212.272603,0.0003,2]
[312875582,1706388641636,-212.272603,0.0003,2]
[312875583,1706388641645,-151.0,0.0003,2]
[312875584,1706388641654,-151.0,0.0003,2]
[312875585,1706388641663,-166.048646,0.0003,2]
[312875586,1706388641671,-151.0,0.0003,2]
[312875587,1706388641681,-151.0,0.0003,2]
[312875588,1706388641690,-166.92294,0.0003,2]
[312875589,1706388641698,-166.92294,0.0003,2]
[312875590,1706388641707,-534.186797,0.0003,2]
[312875591,1706388641716,-534.186797,0.0003,2]
[312875592,1706388641726,-534.186797,0.0003,2]
[312875593,1706388641735,-534.186797,0.0003,2]
[312875594,1706388641744,-3711.65009,0.0003,2]
[312875595,1706388641754,-3711.65009,0.0003,2]
[312875596,1706388641763,-3711.65009,0.0003,2]
[312875597,1706388641772,-3711.65009,0.0003,2]
[312875598,1706388641783,-151.0,0.0003,2]
[312875599,1706388641792,-213.0,0.0003,2]
[312875600,1706388641801,-7449.883539,0.0003,2]
[312875601,1706388641810,-7449.883539,0.0003,2]
[312875602,1706388641819,-7449.883539,0.0003,2]
[312875603,1706388641828,-7449.883539,0.0003,2]
[312875604,1706388641838,-620.03186713,0.00030001,2]
[312875605,1706388641846,-245.548314,0.000301,2]
[312875606,1706388641856,-245.548314,0.000301,2]
[312875607,1706388641866,-306.0,0.00030137,2]
[312875608,1706388641875,-153.0,0.00030137,2]
[312875609,1706388641884,-153.0,0.00030137,2]
[312875610,1706388641893,-153.0,0.00030137,2]
[312875611,1706388641902,-199.4415769,0.00030137,2]
[312875612,1706388641911,-153.0,0.00030137,2]
[312875613,1706388641919,-153.0,0.00030137,2]
[312875614,1706388641928,-199.4415769,0.00030137,2]
[312875615,1706388641937,-153.0,0.00030137,2]
[312875616,1706388641946,-199.4415769,0.00030137,2]
[312875617,1706388641955,-323.3168459,0.00030137,2]
[312875618,1706388641964,-199.4415769,0.00030137,2]
[312875619,1706388641973,-199.4415769,0.00030137,2]
[312875620,1706388641982,-199.4415769,0.00030137,2]
[312875621,1706388641991,-199.4415769,0.00030137,2]
[312875622,1706388642000,-199.4415769,0.00030137,2]
[312875623,1706388642009,-199.4415769,0.00030137,2]
[312875624,1706388642018,-158.374567,0.00030137,2]
[312875625,1706388642027,-155.0,0.00030137,2]
[312875626,1706388642036,-76922.91911791,0.00030161,2]
[312875627,1706388642045,-151.0,0.00030161,2]
[312875628,1706388642054,-212.272603,0.00030161,2]
[312875629,1706388642063,-212.272603,0.00030161,2]
[312875630,1706388642073,-151.0,0.00030161,2]
[312875631,1706388642082,-151.0,0.00030161,2]
[312875632,1706388642091,-166.92294,0.00030161,2]
[312875633,1706388642100,-166.92294,0.00030161,2]
[312875634,1706388642109,-534.186797,0.00030161,2]
[312875635,1706388642118,-534.186797,0.00030161,2]
[312875636,1706388642127,-3711.65009,0.00030161,2]
[312875637,1706388642136,-3711.65009,0.00030161,2]
[312875638,1706388642145,-151.0,0.00030161,2]
[312875639,1706388642154,-938.20444852,0.00030161,2]
[312875640,1706388642336,-6511.67909048,0.00030161,2]
[312875641,1706388642345,-3691.1704324,0.00030161,2]
[312875678,1706388643583,-5446.89760139,0.0002099,3]
[312875680,1706388643766,-6175.91421399,0.0002099,3]
[312875728,1706388648242,-561.94551525,0.00020988,2]
[312875729,1706388648251,-66.92448175,0.00020989,2]
[312875730,1706388648294,-88.09412048,0.00020989,2]
[312875731,1706388648303,-763.39622161,0.00020989,2]
[312875732,1706388648314,-3158.19961386,0.00020989,2]
[312875733,1706388648324,-602.9736358,0.00020989,2]
[312875734,1706388648333,-1610.48559315,0.00020989,2]
[312875735,1706388648342,-1700.33871557,0.0002099,3]
[312875736,1706388653453,385.72665281,0.00030191,30]
[312875742,1706389083406,995.27318575,0.0001625,2]
[312875743,1706389120081,245.57627736,0.00016153,2]
[312875744,1706389123087,163.32257243,0.00016156,2]
[312875750,1706389278111,3595.82796446,0.00016155,2]
[312875760,1706389556964,289.99958772,0.00016051,2]
[312875769,1706389700564,154.98450155,0.00016046,2]
[312875787,1706389800814,4150.14343382,0.00016046,2]
[312875814,1706389832259,-179.04837668,0.00016042,2]
[312875815,1706389832268,-155.02015262,0.00016042,2]
[312875818,1706389832279,-903.29302173,0.00016043,2]
[312875820,1706389832288,-36993.50130964,0.00016044,2]
[312875822,1706389832298,-19881.04253243,0.00016045,2]
[312875823,1706389832307,-639.10324176,0.00016045,2]
[312875824,1706389832316,-995.27318575,0.00016045,2]
[312875826,1706389832325,-38476.10883771,0.00016046,2]
[312875828,1706389832335,-155.02015262,0.00016128,2]
[312875830,1706389832344,-166.80502533,0.00016129,2]
[312875832,1706389832353,-4817.36489966,0.00016129,2]
[312875834,1706389832362,-155.02015262,0.0001613,2]
[312875836,1706389832372,-5212.65916057,0.0001613,2]
[312875838,1706389832381,-3748.53879648,0.0001613,2]
[312875840,1706389832391,-996.06517026,0.0001613,2]
[312875842,1706389832400,-283.65055231,0.00016131,2]
[312875844,1706389832410,-294.81882163,0.00016131,2]
[312875846,1706389832420,-2100.56674332,0.00016131,2]
[312875941,1706389838280,-595.56031941,0.00016041,2]
[312875943,1706389838289,-9959.32850198,0.00016043,2]
[312875946,1706389838300,-3266.20035065,0.00016043,2]
[312875951,1706389838334,-2358.61589664,0.00016043,2]
[312875955,1706389838391,-4131.59963397,0.00016043,2]
[312875956,1706389838401,-7966.81883748,0.0001613,2]
[312875957,1706389838410,-16816.66375123,0.00016131,2]
[312875958,1706389838420,-288.17650202,0.00016155,2]
[312875959,1706389838429,-486.80574345,0.00016256,2]
[312875960,1706389838439,-343.09681091,0.00016257,2]
[312875961,1706389838449,-685.41453735,0.00017092,2]
[312875962,1706389838458,-265.43031538,0.00018988,2]
[312875963,1706389838467,-247.50946715,0.00018988,2]
[312875964,1706389838477,-523.34168566,0.00018988,2]
[312875965,1706389838486,-155.40417859,0.00018988,2]
[312875966,1706389838496,-155.37359722,0.00018988,2]
[312875967,1706389838505,-310.03565411,0.00018988,2]
[312875968,1706389838515,-1576.73391587,0.00018988,2]
[312875969,1706389838524,-688.5172537,0.00018989,2]
[312875970,1706389838534,-625.17876758,0.00018991,2]
[312875971,1706389838543,-194.95909796,0.00018991,2]
[312875972,1706389838552,-3921.59583547,0.00018998,2]
[312875973,1706389838562,-1583.7528565,0.00019,2]
[312875974,1706389838570,-169.685867,0.00019178,2]
[312875975,1706389838579,-168.056981,0.00019178,2]
[312875976,1706389838589,-24514.38,0.00019989,3]
[312875977,1706389838598,-181.11768672,0.00019992,2]
[312875978,1706389838608,-155.14803687,0.00019993,2]
[312875979,1706389838617,-522.50744065,0.00019997,2]
[312875980,1706389838626,-15633.02905683,0.00019999,2]
[312875981,1706389838635,-155.01860223,0.0002,2]
[312875982,1706389838645,-155.02015262,0.0002,2]
[312875983,1706389838655,-155.02015262,0.0002,2]
[312875984,1706389838664,-1199.09633829,0.0002,2]
[312875985,1706389838674,-155.02015262,0.0002,2]
[312875986,1706389838683,-2009.31889645,0.0002,2]
[312875987,1706389838692,-679.3029243,0.0002,2]
[312875988,1706389838702,-155.02015262,0.0002,2]
[312875989,1706389838711,-168.99927393,0.0002,2]
[312875990,1706389838721,-244.16390159,0.0002,2]
[312875991,1706389838730,-200.0,0.0002,2]
[312875992,1706389838740,-259.07239837,0.0002,2]
[312875993,1706389838749,-156.28562946,0.0002,2]
[312875994,1706389838759,-158.56416617,0.00020886,2]
[312875995,1706389838769,-1267.85460751,0.00020984,2]
[312875996,1706389838779,-301.91875218,0.00020986,2]
[312875997,1706389838788,-1827.38712364,0.00021,2]
[312875998,1706389838798,-500.0,0.00021917,2]
[312875999,1706389838807,-500.0,0.00021917,2]
[312876000,1706389838817,-500.0,0.00021917,2]
[312876001,1706389838826,-500.0,0.00021917,2]
[312876002,1706389838835,-500.0,0.00021917,2]
[312876003,1706389838844,-500.0,0.00021917,2]
[312876004,1706389838854,-619.87643609,0.00021917,2]
[312876005,1706389838863,-166.666666,0.00021918,2]
[312876006,1706389838872,-293.70793193,0.00022,4]
[312876007,1706389838881,-426.38170713,0.00022,2]
[312876008,1706389838891,-2036.12411825,0.00022,2]
[312876009,1706389838900,-327.61566675,0.00022,2]
[312876010,1706389838909,-3971.98419525,0.00022,2]
[312876011,1706389838919,-164.09330822,0.00022,2]
[312876012,1706389838928,-166.666666,0.00022431,2]
[312876013,1706389838937,-166.666666,0.00022944,2]
[312876014,1706389838947,-9947.92180076,0.00023,2]
[312876015,1706389838957,-166.666666,0.00023456,2]
[312876016,1706389838966,-158.56416614,0.00023924,2]
[312876017,1706389838976,-166.666666,0.00023969,2]
[312876018,1706389838985,-4017.99473219,0.00024,2]
[312876019,1706389838994,-166.666666,0.00024482,2]
[312876020,1706389839004,-380.0,0.00024658,2]
[312876021,1706389839013,-498.88477678,0.0002496,5]
[312876022,1706389839024,-155.01860223,0.00025,2]
[312876023,1706389839033,-4727.98807036,0.00025,2]
[312876024,1706389839042,-7649.9786433,0.00025,2]
[312876025,1706389839052,-680.67452781,0.00025,2]
[312876026,1706389839061,-1958.72935728,0.00025,2]
[312876027,1706389839071,-851.06760342,0.00025,2]
[312876028,1706389839080,-167.80993341,0.00025,2]
[312876029,1706389839089,-260.27250039,0.00025,2]
[312876030,1706389839098,-155.02015262,0.00025,2]
[312876031,1706389839108,-158.56416614,0.00026962,2]
[312876032,1706389839117,-290.6944281,0.00027,2]
[312876033,1706389839127,-155.0,0.00027397,2]
[312876034,1706389839136,-635.169337,0.00027397,2]
[312876035,1706389839145,-29417.26,0.00027397,3]
[312876036,1706389839155,-620.63574984,0.00027618,2]
[312876037,1706389839164,-2038.68616841,0.00027851,2]
[312876038,1706389839173,-164.91117527,0.00027852,2]
[312876039,1706389839185,-5639.49862495,0.000279,2]
[312876040,1706389839194,-50000.0,0.00027981,5]
[312876041,1706389839203,-200.96358611,0.00028,2]
[312876042,1706389839213,-600.0,0.00028,2]
[312876043,1706389839223,-239.76670397,0.00028,2]